Cogmind - Beta 13 @@@ ROGUE MODE // 2024.04.27 @ 21:22:39 Player: opaguck Result: Destroyed by G-34 Mercenary with Small Laser Performance ------------- Evolutions (1) 500 Regions Visited (2) 400 Robots Destroyed (3) 15 Value Destroyed (48) 48 Prototype IDs (0) 0 Alien Tech Used (0) 0 Bonus (0) 0 TOTAL SCORE: 963 Bonus ------- None Cogmind --------- Core Integrity 0/400 Matter 264/300 Energy 100/100 System Corruption 0% Temperature Cool (15) Movement Core (1350) Ox26 Location -9/Materials Parts ------- > --- POWER (1) -------- (None) > --- PROPULSION (3) --- (None) > --- UTILITY (2) ------ Huge Storage Unit Visual Processing Unit > --- WEAPON (3) ------- (None) > --- INVENTORY (25) --- Light Ion Engine Small Storage Unit Sensor Array Signal Interpreter Signal Interpreter Core Shielding Core Shielding Light Armor Plating Peak State ------------ > --- POWER ------------ Light Ion Engine > --- PROPULSION ------- Light Treads Light Treads Light Treads > --- UTILITY ---------- Huge Storage Unit Visual Processing Unit > --- WEAPON ----------- Light Assault Rifle > --- INVENTORY -------- Light Ion Engine Aluminum Leg Aluminum Leg Small Storage Unit Sensor Array Signal Interpreter Signal Interpreter Core Shielding Core Shielding Light Armor Plating [Rating: 9] Favorites ----------- Power Ion Engine Engine Ion Engine Propulsion Light Treads Treads Light Treads Leg Aluminum Leg Utility Visual Processing Unit Storage Huge Storage Unit Processor Visual Processing Unit Weapon Light Assault Rifle Ballistic Gun Light Assault Rifle Build | -11 -10 -9 ------- Run | Yrd Mat Mat Slots Evolved 2 | . . 2 Power . | . . . Propulsion 1 | . . 1 Utility . | . . . Weapon 1 | . . 1 Parts Attached 12 | 6 2 4 Power 2 | 1 . 1 Engine 2 | 1 . 1 Core . | . . . Reactor . | . . . Propulsion 5 | 2 . 3 Treads 3 | 2 . 1 Leg 2 | . . 2 Wheel . | . . . Hover . | . . . Flight . | . . . Utility 3 | 1 2 . Device . | . . . Storage 2 | 1 1 . Processor 1 | . 1 . Hackware . | . . . Protection . | . . . Artifact . | . . . Weapon 2 | 2 . . Energy Gun . | . . . Energy Cannon . | . . . Ballistic Gun 2 | 2 . . Ballistic Cannon . | . . . Launcher . | . . . Special Weapon . | . . . Impact Weapon . | . . . Slashing Weapon . | . . . Piercing Weapon . | . . . Special Melee Weapon . | . . . Unidentified Prototypes . | . . . Parts Lost 9 | . 2 7 Power 2 | . 1 1 Propulsion 5 | . . 5 Utility . | . . . Weapon 2 | . 1 1 Highest Loss Streak 5 | . 2 5 To Critical Strikes . | . . . Average Slot Usage (%) 83 | . 94 62 Engine 10 | . 14 3 Treads 27 | . 28 25 Leg 1 | . . 2 Storage 12 | . 14 11 Processor 9 | . 9 11 Ballistic Gun 20 | . 27 8 Naked Turns . | . . . Heaviest Build 88 | 13 88 84 Greatest Support 60 | 40 40 60 Greatest Overweight (x) 26 | . 2 26 Average Overweight (x) . | . . 1 Largest Inventory Capacity 25 | 8 25 25 Average Capacity 19 | 7 18 25 Most Carried 10 | 3 9 10 Average Carried 7 | 1 7 8 Final Capacity 25 | 8 25 25 Final Carried 9 | 3 9 8 Class Distribution -------------------- 100% | Mutant Dominant Class ---------------- Mutant | -10/Materials Mutant | -9/Materials Resources | -11 -10 -9 ----------- Run | Yrd Mat Mat Matter Collected 329 | 227 77 25 Remotely . | . . . Salvage Created 63 | . 38 25 Parts 8 | . 5 3 Haulers Intercepted . | . . . Recyclers Shooed . | . . . Parts Field Recycled . | . . . Retrieved Matter . | . . . Parts Self-Destructed . | . . . Prevented . | . . . Kills | -11 -10 -9 ------- Run | Yrd Mat Mat Combat Hostiles Destroyed . | . . . Classes Destroyed 1 | . 1 . Watcher 3 | . 2 1 Best Kill Streak 1 | . 1 1 Combat Bots Only . | . . . Max Kills in Single Turn 1 | . 1 1 Gunslinging . | . . . Exploded . | . . . Melee . | . . . Uniques/NPCs Destroyed . | . . . Combat | -11 -10 -9 -------- Run | Yrd Mat Mat Hostile Shots Fired 175 | . 62 113 Missed 53 | . 22 31 Damage Taken 1571 | . 538 1033 Core 510 | . 105 405 Absorbed by Shields . | . . . Core Remaining (%) 79 | 100 58 . Volleys Fired 30 | . 20 10 Largest 2 | . 2 1 Hottest 40 | . 40 20 Shots Fired 50 | . 40 10 Gun 50 | . 40 10 Cannon . | . . . Launcher . | . . . Special . | . . . Kinetic 50 | . 40 10 Thermal . | . . . Explosive . | . . . Electromagnetic . | . . . Robot Hit Streak 10 | . 10 3 Robot Miss Streak 5 | . 3 5 Penetration Max . | . . . Secondary Targets . | . . . Shots Hit Robots 31 | . 27 4 Core Hits 8 | . 5 3 Critical Kills . | . . . Critical Parts Destroyed . | . . . Critical Strikes . | . . . Melee Attacks . | . . . Impact . | . . . Slashing . | . . . Piercing . | . . . Sneak Attacks . | . . . Combat Hostiles . | . . . Follow-up Attacks . | . . . Damage Inflicted 323 | . 272 51 Guns 305 | . 272 33 Cannons . | . . . Explosions . | . . . Melee . | . . . Ramming 18 | . . 18 Kinetic 305 | . 272 33 Thermal . | . . . Explosive . | . . . Electromagnetic . | . . . Impact . | . . . Slashing . | . . . Piercing . | . . . Highest Corruption . | . . . Average Corruption . | . . . Corruption Purged . | . . . Corruption Blocked . | . . . Overload Shots . | . . . Overflow Damage . | . . . Projectiles . | . . . Explosions . | . . . Melee . | . . . Knockbacks . | . . . Impact . | . . . Kinetic . | . . . Secondary . | . . . Self-Inflicted Damage . | . . . Shots . | . . . Rammed 1 | . . 1 Targets Rammed 1 | . . 1 Kicked . | . . . Crushed . | . . . Highest Temperature 31 | . 31 11 Average Temperature 13 | . 14 6 Received Heat Transfer 912 | . 321 591 Siege Activations . | . . . Robots Corrupted . | . . . Combat Hostiles . | . . . Parts Fried . | . . . Impact Corruptions . | . . . Robots Melted . | . . . Combat Hostiles . | . . . Parts Melted . | . . . Heat Transferred . | . . . Parts Sabotaged . | . . . Parts Stolen . | . . . Parts Stripped . | . . . Power Chain Reactions . | . . . Alert | -11 -10 -9 ------- Run | Yrd Mat Mat Peak Influence 44 | . 44 44 Initial . | . . . Average 8 | . 6 14 Maximum Alert Level . | . . . Low Security (%) 100 | 100 100 100 Level 1 . | . . . Level 2 . | . . . Level 3 . | . . . Level 4 . | . . . Level 5 . | . . . High Security . | . . . Max Security . | . . . Squads Dispatched 1 | . . 1 Investigation . | . . . Extermination . | . . . Reinforcement 1 | . . 1 Assault . | . . . Garrison . | . . . Intercept . | . . . Searches Triggered . | . . . Construction Impeded . | . . . Haulers Reinforced . | . . . Active Scanning Responses . | . . . Cargo Convoy Interrupts . | . . . Stealth | -11 -10 -9 --------- Run | Yrd Mat Mat Distress Signals . | . . . Communications Jammed . | . . . Distress Signals . | . . . Times Spotted 14 | . 8 6 Peak Tracking Total 4 | . 4 4 Tactical Retreats . | . . . Traps | -11 -10 -9 ------- Run | Yrd Mat Mat Traps Triggered . | . . . Indirectly . | . . . Trap Hack Attempts . | . . . Triggered . | . . . Disarmed 4 | . 4 . Reprogrammed . | . . . Reused . | . . . Traps Extracted . | . . . Installed . | . . . Triggered . | . . . Machines | -11 -10 -9 ---------- Run | Yrd Mat Mat Machines Disabled . | . . . Max in Single Turn . | . . . Machines Repaired . | . . . Machines Dismantled . | . . . Machines Sabotaged . | . . . Overloaded Fab Kills . | . . . Hacking | -11 -10 -9 --------- Run | Yrd Mat Mat Machines Accessed 4 | . 2 2 Terminals 3 | . 2 1 Fabricators . | . . . Repair Stations . | . . . Recycling Units . | . . . Scanalyzers 1 | . . 1 Garrison Access . | . . . Total Hacks 11 | . 6 5 Successful 7 | . 3 4 Failed 4 | . 3 1 Catastrophic . | . . . Database Lockouts . | . . . Manual . | . . . Terminals 9 | . 6 3 Fabricators . | . . . Repair Stations . | . . . Recycling Units . | . . . Scanalyzers 2 | . . 2 Garrison Access . | . . . Terminal Hacks 5 | . 3 2 Emergency Access Points 1 | . . 1 Unreport Threat 1 | . 1 . Disarm Traps 1 | . 1 . Zone Layout 2 | . 1 1 Fabricator Hacks . | . . . Repair Station Hacks . | . . . Recycling Unit Hacks . | . . . Scanalyzer 2 | . . 2 Insert Component 1 | . . 1 Analyze 1 | . . 1 Garrison Access Hacks . | . . . Unauthorized Hacks . | . . . Terminals . | . . . Fabricators . | . . . Repair Stations . | . . . Recycling Units . | . . . Scanalyzers . | . . . Garrison Access . | . . . Data Cores Recovered . | . . . Used . | . . . Hacking Detections 3 | . 2 1 Full Trace Events 1 | . 1 . Feedback Events . | . . . Feedback Blocked . | . . . Robot Schematics Acquired . | . . . Robots Built . | . . . Authchips . | . . . Time . | . . . Total Robot Build Rating . | . . . Part Schematics Acquired 1 | . . 1 Parts Built . | . . . Authchips . | . . . Time . | . . . Total Part Build Rating . | . . . Parts Repaired . | . . . Time . | . . . Parts Recycled . | . . . Recycled Matter . | . . . Retrieved Matter . | . . . Retrieved Components . | . . . Parts Scanalyzed 1 | . . 1 Part Schematics Acquired 1 | . . 1 Parts Damaged . | . . . Bothacking | -11 -10 -9 ------------ Run | Yrd Mat Mat Used RIF Installer . | . . . Robots Hacked . | . . . Non-combat . | . . . Combat . | . . . Robot Hacks Applied . | . . . Relay Couplers Released . | . . . Fabnet Peak Effective % . | . . . Robots Rewired . | . . . Allies Hacked . | . . . Hacks Repelled . | . . . Allies | -11 -10 -9 -------- Run | Yrd Mat Mat Total Allies . | . . . Largest Group . | . . . Highest-Rated Group . | . . . Highest-Rated Ally . | . . . Total Orders . | . . . Ally Attacks . | . . . Total Damage . | . . . Kills . | . . . Allies Corrupted . | . . . Allies Melted . | . . . Intel | -11 -10 -9 ------- Run | Yrd Mat Mat Robot Analysis Total . | . . . Derelict Logs Recovered . | . . . Drone Launches . | . . . Drone Recoveries . | . . . Exploration | -11 -10 -9 ------------- Run | Yrd Mat Mat Turns Passed 1015 | 68 607 340 Spaces Moved 328 | 38 196 94 Core 4 | 3 . 1 Treads 311 | 35 196 80 Legs 13 | . . 13 Wheels . | . . . Hover . | . . . Flight . | . . . Fastest Speed 50 | 50 160 240 Average Speed 226 | 151 216 279 Slowest Speed 1350 | 160 320 1350 Overloaded Moves . | . . . Propulsion Burnouts . | . . . Robots Hopped . | . . . Cave-ins Triggered . | . . . Exploration Rate (%) 17 | 5 31 16 Regions Visited 2 Branch Regions . Pre-discovered Areas . | . . . Known Exits Taken . | . . . Unknown Exits Taken 2 | 1 1 . Scrap Searched . | . . . Spaces Dug . | . . . Terrain Destroyed . | . . . Melee . | . . . Projectile . | . . . AOE . | . . . Terrain Rammed . | . . . Walls Destroyed . | . . . Machines Disabled . | . . . Actions | -11 -10 -9 --------- Run | Yrd Mat Mat Total 552 | 46 344 162 Wait 172 | . 122 50 Move 326 | 37 195 94 Hop . | . . . Pick Up 11 | 3 5 3 Fast Attach 7 | 6 1 . Attach 4 | . . 4 Detach . | . . . Swap 1 | . 1 . Drop . | . . . Fire 30 | . 20 10 Melee . | . . . Ram . | . . . Kick . | . . . Crush 1 | . . 1 Escape Stasis . | . . . Rewire . | . . . Trap . | . . . Miscellaneous . | . . . Route ------- -11/Scrapyard -10/Materials -9/Materials History --------- Turn | Location | Event 6 | -11/Scrapyard | Discovered new exit (range 15) 69 | -11/Scrapyard | Entered Materials 320 | -10/Materials | Build established: Mutant 445 | -10/Materials | Discovered new exit (range 3) 676 | -10/Materials | Entered another Materials area 676 | -9/Materials | Evolved 2 slots: Propulsion x1, Weapon x1 968 | -9/Materials | Core integrity fell below 50% 980 | -9/Materials | Lost 5 parts (1p3n1w) 1006 | -9/Materials | Core integrity fell below 20% 1016 | -9/Materials | Destroyed by G-34 Mercenary with Small Laser Last Messages --------------- 00851_ Acquired Lgt. Armor Plating. 00857_ Connecting with Scanalyzer... >>Insert(Lgt. Armor Plating) Scanning Lgt. Armor Plating... Ready to analyze. >>Scanalyze Scanning: Lgt. Armor Plating... Schematic downloaded. 00929_ Lgt. Treads destroyed. 00939_ Critical hit (Burn: +37). 00942_ Lgt. Ion Engine destroyed. 00945_ Lgt. Assault Rifle destroyed. 00946_ K-01 Serf collects debris. 00946_ K-01 Serf destroyed. 00949_ Lgt. Treads destroyed. 00954_ R-06 Scavenger collects Sml. Matter Pod. 00958_ R-06 Scavenger collects Wheel. 00962_ R-06 Scavenger collects Lgt. Ion Engine. 00966_ K-01 Serf collects debris. 01003_ Aluminum Leg destroyed. Map ----- +----------------------------------------------------+ | ?????????????????????????????????????????????????? | | ?????????????????????????????????????????????????? | | ?????????????????????????????????????????????????? | | ?????????????????????????????????????????????????? | | ?????????????????????????????????????????????????? | | ?????????????????????????????????????????????????? | | ?????????????????????????????????????????????????? | | ?????????????????????????????????????????????????? | | ????????????????????????? ??????????????????????? | | ????????????????????????? ###???????????????????? | | ????????????????????????? ???????????????????? | | ????????????????????????? ???????????????????? | | ????????????????????????? ????????????????????? | | ????????????????????????? ???????????????????? | | ???????????????????????## ????????????????????? | | ???????????????????????# "????????????????????? | | ???????????????????????# ????????????????????? | | ???????????????????????# ?????????????????????? | | ???????????????????????# ?????????????????????? | | ???????????????????????# #?????????????????????? | | ???????????????????????# #?????????????????????? | | ???????????????????????/ #?????????????????????? | | ???????????????????????# #?????????????????????? | | ???????????????????????# #?????????????????????? | | ???????????????????????# #?????????????????????? | | ???????????????????????# @ #?????????????????????? | | ???????????????????????# ##############????????? | | ???????????????######### ???????? | | ???????????????# + ???????? | | ???????#???????# """"" # g ???????? | | ???????? ??????# """"" #g ####### """""????????? | | ????????# ???????"""""?# #????????""???????????? | | ????????# ?????? ?# #?????????????????????? | | ????????# ????#####??# g#?????????????????????? | | ?######## ############ #?????????????????????? | | ?# % #?????????????????????? | | ?# #?????????????????????? | | ?# #?????????????????????? | | ??? ###+######+#### ### #?????????????????????? | | ??? #?????# ## #? #????????????????????? | | ??? #?????# ## #? ??????????????????? | | ?? #?????# "" ## #? ????????????????? | | ?? #?????# """## #? ??????????????? | | ?? #?????# S"## #? ########?????????????? | | ?# ## # ## ########????????????????????? | | ?# ## ######### #???????????????????????????? | | ?# ## #???????# #???????????????????????????? | | ?# ## #????#### #########???????????????????? | | ## ########???# # """ #???????????????????? | | ##### # """ #???????????????????? | +----------------------------------------------------+ Best States ------------- Heat Dissipation 28 Energy Generation 10 Energy Capacity 250 Matter Stores 300 Matter Capacity 300 Sight Range 18 Terrain Scan Density 10 Evasion (%) 40 Recoil Reduction 3 Item Schematics ----------------- Lgt. Armor Plating | -9/Materials | Scanalyzed Robot Schematics ------------------ None Fabricated ------------ Nothing Alien Tech Used ----------------- None Achievements -------------- None Challenges ------------ None Game ------ Seed DefenseThunderMeganuke Manual? 0 Play Time 00:11:10 Cumulative 19.8 hours Start 2024.04.27 @ 21:13:47 End 2024.04.27 @ 21:22:39 Sessions 1 Manual Loads 0 Difficulty Rogue Special Mode None Game No. 31 Rogue 31 Adventurer 0 Explorer 0 Win Type - Total 0 Types 0/0/0/0/0/0/0/0/0 Lore% 23 Gallery% 25 Achievement% 20 Wizard Run 0 Options --------- Layout 1 ASCII 0 Keyboard 0 Movement Numpad Keybinds 0 Fullscreen 2 Font 24/Smallcaps Map View 50x35 Zoom Use 0% Tactical HUD 1 Map Filters NONE Filters NONE Steam 1 RUN: e024cdf1-379d-4535-b8b1-4a2d038aaad6